bitfinex/quotes_BTCUSD_20250428
["timestamp","ask_amount","ask_price","bid_price","bid_amount"]
[1745815392129,0.00265525,94158.0,94142.0,0.01268423]
[1745815392337,0.01992878,94157.0,94142.0,0.01368423]
[1745815392569,0.00265525,94156.0,94142.0,0.01368423]
[1745815392752,0.02258403,94156.0,94143.0,0.01062213]
[1745815392954,0.01992878,94155.0,94143.0,0.01062213]
[1745815393301,0.01992878,94155.0,94142.0,0.01168423]
[1745815393501,0.01992878,94154.0,94142.0,0.00106198]
[1745815393729,0.01992878,94154.0,94142.0,0.01168423]
[1745815393948,0.01992878,94154.0,94143.0,0.00790482]
[1745815394154,0.01992878,94153.0,94143.0,0.00790482]
[1745815394557,0.01992878,94152.0,94143.0,0.00790482]
[1745815395002,0.00265525,94160.0,94143.0,0.00790482]
[1745815395003,0.01992878,94151.0,94143.0,0.00790482]
[1745815395515,0.01992878,94150.0,94143.0,0.00896683]
[1745815395923,0.00265525,94160.0,94143.0,0.00896683]
[1745815396672,0.01992854,94159.0,94143.0,0.00896683]
[1745815396879,0.00265525,94158.0,94143.0,0.00996683]
[1745815397081,0.01992854,94157.0,94143.0,0.00996683]
[1745815397340,0.00265525,94156.0,94143.0,0.00996683]
[1745815397718,0.00265525,94156.0,94143.0,0.00896683]
[1745815397921,0.01992854,94155.0,94143.0,0.00896683]
[1745815398334,0.02258379,94154.0,94143.0,0.00896683]
[1745815398765,0.01992854,94153.0,94143.0,0.00896683]
[1745815399439,0.01992854,94152.0,94143.0,0.00896683]
[1745815399843,0.01992854,94151.0,94143.0,0.00896683]
[1745815400195,0.05255526,94150.0,94143.0,0.00790482]
[1745815400596,0.05255526,94150.0,94137.0,0.00789478]
[1745815400597,0.01992854,94149.0,94140.0,0.13387363]
[1745815400808,0.01992854,94149.0,94141.0,0.00106211]
[1745815401009,0.01992854,94149.0,94143.0,0.01062213]
[1745815401208,0.0483,94161.0,94143.0,0.22306388]
[1745815401427,0.0483,94161.0,94148.0,0.01062157]
[1745815401611,0.0452,94163.0,94152.0,0.21242246]
[1745815401821,0.01991851,94160.0,94154.0,0.22303793]
[1745815402063,0.01991851,94160.0,94156.0,0.22303197]
[1745815402313,0.0452,94163.0,94155.0,0.01062078]
[1745815402458,0.0452,94163.0,94157.0,0.01852334]
[1745815402657,0.4605,94169.0,94157.0,0.01852334]
[1745815402936,0.01990623,94168.0,94157.0,0.01852334]
[1745815403188,0.001,94161.0,94158.0,0.01062044]
[1745815403388,0.002,94161.0,94158.0,0.01062044]
[1745815403569,0.001,94161.0,94159.0,0.00790119]
[1745815404323,0.0108417,94163.0,94159.0,0.00790119]
[1745815404472,0.0108417,94163.0,94160.0,0.01062022]
[1745815404835,0.002,94169.0,94161.0,0.0106201]
[1745815405233,0.002,94169.0,94159.0,0.34627707]
[1745815405234,0.01990115,94168.0,94162.0,0.0078988]
[1745815405587,0.01990115,94168.0,94160.0,0.01062022]
[1745815405790,0.01990115,94167.0,94163.0,0.00789801]
[1745815405992,0.01990115,94167.0,94161.0,0.0106201]
[1745815406193,0.01076608,94173.0,94164.0,0.01851697]
[1745815406392,0.0488,94176.0,94164.0,0.01061976]
[1745815406623,0.05930726,94176.0,94165.0,0.00789641]
[1745815406819,0.01989526,94175.0,94165.0,0.01851606]
[1745815407067,0.001,94167.0,94165.0,0.01851606]
[1745815407268,0.001,94167.0,94165.0,0.00789641]
[1745815408065,0.002,94175.0,94165.0,0.01851606]
[1745815408268,0.05930726,94176.0,94165.0,0.01851606]
[1745815408487,0.05930726,94176.0,94165.0,0.00789641]
[1745815408858,0.01989076,94175.0,94165.0,0.00789641]
[1745815409600,0.01989076,94174.0,94165.0,0.00789641]
[1745815410030,0.01989076,94173.0,94165.0,0.00789641]
[1745815410441,0.01989076,94172.0,94165.0,0.00789641]
[1745815410853,0.01989076,94171.0,94165.0,0.00789641]
[1745815411492,0.01989076,94170.0,94165.0,0.00789641]
[1745815411919,0.05930726,94176.0,94165.0,0.00789641]
[1745815412563,0.06476187,94175.0,94165.0,0.00789641]
[1745815412763,0.02254052,94175.0,94165.0,0.00789641]
[1745815413097,0.001,94172.0,94165.0,0.00789641]
[1745815413299,0.001,94171.0,94165.0,0.00789641]
[1745815413705,0.01988566,94170.0,94165.0,0.00789641]
[1745815414062,0.05930726,94176.0,94165.0,0.00789641]
[1745815414276,0.002,94175.0,94165.0,0.00789641]
[1745815414427,0.001,94171.0,94165.0,0.00789641]
[1745815414650,0.01988485,94175.0,94165.0,0.00789641]
[1745815414838,0.01988485,94170.0,94165.0,0.00789641]
[1745815415177,0.02188485,94170.0,94165.0,0.00789641]
[1745815415336,0.002,94170.0,94165.0,0.00789641]
[1745815416400,0.05930726,94176.0,94165.0,0.00789641]
[1745815416601,0.001,94171.0,94165.0,0.00789641]
[1745815416774,0.002,94175.0,94165.0,0.00789641]
[1745815416959,0.05930726,94176.0,94165.0,0.00789641]
[1745815417160,0.001,94170.0,94165.0,0.00789641]
[1745815417804,0.00265486,94175.0,94165.0,0.00789641]
[1745815418570,0.01988352,94174.0,94165.0,0.00789641]
[1745815418770,0.00265486,94173.0,94165.0,0.00789641]
[1745815419416,0.01988352,94172.0,94165.0,0.00789641]
[1745815419625,0.001,94170.0,94165.0,0.00789641]
[1745815420068,0.00265486,94175.0,94165.0,0.00789641]
[1745815420254,0.001,94173.0,94165.0,0.00789641]
[1745815420453,0.001,94170.0,94165.0,0.00789641]
[1745815421175,0.00265486,94173.0,94165.0,0.00789641]
[1745815421673,0.001,94170.0,94165.0,0.00789641]
[1745815422697,0.00265486,94171.0,94165.0,0.00789641]
[1745815422899,0.00265486,94175.0,94165.0,0.00789641]
[1745815423101,0.001,94170.0,94165.0,0.00789641]
[1745815424088,0.001,94170.0,94165.0,0.00253714]
[1745815424520,0.002,94170.0,94165.0,0.00696704]
[1745815426403,0.05860055,94176.0,94165.0,0.00160969]
[1745815426537,0.05860055,94176.0,94165.0,0.00607415]
[1745815426737,0.00159364,94175.0,94165.0,0.00607415]
[1745815426962,0.01989363,94174.0,94165.0,0.00607415]
[1745815427158,0.00159364,94173.0,94165.0,0.00607415]
[1745815427474,0.01989363,94172.0,94165.0,0.00607415]
[1745815427723,0.00159364,94171.0,94165.0,0.00607415]
[1745815428106,0.01989363,94170.0,94165.0,0.00607415]
[1745815428309,0.00159364,94169.0,94165.0,0.00607415]
[1745815428714,0.00159364,94175.0,94165.0,0.00607415]
[1745815429110,0.001,94173.0,94165.0,0.00607415]
[1745815429323,0.00159364,94172.0,94165.0,0.00607415]
[1745815429727,0.01990007,94171.0,94165.0,0.00607415]
[1745815429920,0.00159364,94170.0,94165.0,0.00607415]
[1745815430122,0.01990007,94169.0,94165.0,0.00607415]
[1745815430350,0.0089837,94169.0,94165.0,0.00607415]
[1745815430857,0.00159364,94175.0,94165.0,0.00607415]
[1745815431171,0.00159364,94175.0,94164.0,0.00804145]
[1745815431395,0.00159364,94175.0,94160.0,0.01062022]
[1745815431614,0.00159364,94175.0,94161.0,0.00607813]
[1745815431817,0.05860055,94176.0,94161.0,0.01414957]
[1745815432796,0.001,94175.0,94161.0,0.01414957]
[1745815433891,0.05960055,94176.0,94161.0,0.01414957]
[1745815434028,0.05860055,94176.0,94161.0,0.01414957]
[1745815434230,0.001,94175.0,94161.0,0.01414957]
[1745815435883,0.002,94175.0,94161.0,0.01414957]
[1745815439433,0.002,94175.0,94163.0,0.01061988]
[1745815440288,0.002,94175.0,94164.0,0.00609155]
[1745815440489,0.001,94175.0,94164.0,0.01671131]
[1745815441051,0.002,94175.0,94164.0,0.01671131]
[1745815441639,0.001,94175.0,94164.0,0.01671131]
[1745815441844,0.002,94175.0,94164.0,0.01671131]
[1745815442017,0.002,94175.0,94164.0,0.00609155]
[1745815442371,0.01992418,94174.0,94164.0,0.01671131]
[1745815442763,0.01992418,94174.0,94164.0,0.00609155]
[1745815443031,0.01992418,94173.0,94164.0,0.01671131]
[1745815443393,0.01050726,94176.0,94164.0,0.01671131]
[1745815443394,0.01992418,94172.0,94164.0,0.01671131]
[1745815443723,0.01992418,94171.0,94164.0,0.01671131]
[1745815443921,0.01992418,94171.0,94164.0,0.00609155]
[1745815444125,0.01992418,94170.0,94164.0,0.00609155]
[1745815444531,0.01992418,94169.0,94164.0,0.00609155]
[1745815445067,0.01992418,94168.0,94164.0,0.00609155]
[1745815445454,0.01992418,94167.0,94164.0,0.00609155]
[1745815446027,0.001,94173.0,94164.0,0.00609155]
[1745815446233,0.01050726,94176.0,94162.0,0.06104375]
[1745815446438,0.01992411,94175.0,94163.0,0.00609814]
[1745815446865,0.01992411,94175.0,94163.0,0.01671802]
[1745815447084,0.01992411,94174.0,94163.0,0.00609814]
[1745815447691,0.02092411,94173.0,94163.0,0.00609814]
[1745815448094,0.01992411,94172.0,94163.0,0.00609814]
[1745815448519,0.01992411,94171.0,94163.0,0.00609814]
[1745815449336,0.01992411,94170.0,94163.0,0.00609814]
[1745815449795,0.01992411,94169.0,94163.0,0.00609814]
[1745815450444,0.01992411,94168.0,94163.0,0.00609814]
[1745815451004,0.01992411,94167.0,94163.0,0.00609814]
[1745815451631,0.01992411,94166.0,94164.0,0.01061976]
[1745815451835,0.01992411,94166.0,94164.0,0.00609735]
[1745815452237,0.01069532,94176.0,94164.0,0.00609735]
[1745815452442,0.0456,94184.0,94164.0,0.00609735]
[1745815452650,0.01992526,94183.0,94163.0,0.01061988]
[1745815453058,0.01992526,94183.0,94164.0,0.00709735]
[1745815453275,0.01992526,94182.0,94164.0,0.00709735]
[1745815453528,0.01992526,94182.0,94164.0,0.001]
[1745815453738,0.01992526,94181.0,94165.0,0.00609655]
[1745815454253,0.01992526,94180.0,94165.0,0.00609655]
[1745815454903,0.01992526,94179.0,94165.0,0.00609655]
[1745815455330,0.01992526,94178.0,94165.0,0.00609655]
[1745815455794,0.01992526,94178.0,94166.0,0.00609575]
[1745815456006,0.01992526,94177.0,94163.0,0.01061988]
[1745815456215,0.01992526,94176.0,94167.0,0.00609495]
[1745815456438,0.01992526,94176.0,94164.0,0.01061976]
[1745815456666,0.01992526,94176.0,94168.0,0.00609416]
[1745815456895,0.01992526,94175.0,94164.0,0.01061976]
[1745815457116,0.01992526,94175.0,94169.0,0.00609336]
[1745815457334,0.01992526,94175.0,94161.0,0.00807144]
[1745815457555,0.06632526,94174.0,94161.0,0.00807144]
[1745815457732,0.06632526,94174.0,94162.0,0.00611416]
[1745815457971,0.12325116,94171.0,94157.0,0.00804693]
[1745815458169,0.1268154,94170.0,94163.0,0.00611337]
[1745815458342,0.1268154,94170.0,94155.0,0.08988]
[1745815458696,0.01992526,94169.0,94156.0,0.00611895]
[1745815458868,0.01742154,94168.0,94156.0,0.00611895]
[1745815459072,0.01992526,94168.0,94155.0,0.08988]
[1745815459282,0.01992526,94168.0,94155.0,0.10050078]
[1745815459487,0.01992526,94168.0,94156.0,0.00611895]
[1745815459690,0.01992526,94167.0,94156.0,0.00611895]
[1745815459985,0.01992526,94166.0,94152.0,0.01062112]
[1745815460235,0.01992526,94166.0,94157.0,0.00611815]
[1745815460408,0.01992526,94166.0,94155.0,0.01062078]
[1745815460613,0.01992526,94165.0,94158.0,0.00611735]
[1745815460757,0.01992526,94165.0,94155.0,0.01062078]
[1745815460958,0.01992526,94165.0,94156.0,0.00611895]
[1745815461215,0.01992526,94164.0,94153.0,0.01876885]
[1745815461361,0.01992526,94164.0,94157.0,0.00611815]
[1745815461554,0.01992526,94163.0,94153.0,0.01876885]
[1745815461760,0.01992526,94163.0,94154.0,0.00612054]
[1745815461971,0.01992526,94162.0,94154.0,0.00612054]
[1745815462306,0.01992526,94161.0,94154.0,0.00612054]
[1745815463124,0.01992526,94160.0,94154.0,0.01674143]
[1745815463325,0.01992526,94160.0,94154.0,0.00712054]
[1745815463648,0.10689014,94170.0,94154.0,0.00712054]
[1745815464021,0.10689014,94170.0,94157.0,0.001]
[1745815464230,0.01991064,94169.0,94157.0,0.001]
[1745815464418,0.01991064,94169.0,94153.0,0.01876885]
[1745815464620,0.01991064,94169.0,94154.0,0.00612054]
[1745815465066,0.01991064,94168.0,94154.0,0.00612054]
[1745815465643,0.01991064,94167.0,94154.0,0.00712054]
[1745815465843,0.01991064,94167.0,94154.0,0.00612054]
[1745815466411,0.01991064,94166.0,94154.0,0.00612054]
[1745815467244,0.01991064,94165.0,94154.0,0.00612054]
[1745815467796,0.01991064,94164.0,94154.0,0.00612054]
[1745815468214,0.01991064,94163.0,94154.0,0.01674143]
[1745815468903,0.01991064,94162.0,94154.0,0.01674143]
[1745815469102,0.01991064,94162.0,94154.0,0.00612054]
[1745815469741,0.01991064,94161.0,94154.0,0.00612054]
[1745815469894,0.01991064,94161.0,94155.0,0.01062078]
[1745815470263,0.01991064,94161.0,94156.0,0.00614407]
[1745815470391,0.10689014,94170.0,94156.0,0.00614407]
[1745815470599,0.01990347,94169.0,94156.0,0.00614407]
[1745815471457,0.01990347,94168.0,94156.0,0.00614407]
[1745815471664,0.01990347,94168.0,94156.0,0.01676474]
[1745815472001,0.01990347,94168.0,94156.0,0.00614407]
[1745815472205,0.01990347,94167.0,94156.0,0.00614407]
[1745815473108,0.01990347,94166.0,94156.0,0.00614407]
[1745815473645,0.01990347,94165.0,94156.0,0.00614407]
[1745815474405,0.01990347,94164.0,94156.0,0.00614407]
[1745815474814,0.001,94167.0,94156.0,0.00614407]
[1745815475253,0.001,94165.0,94156.0,0.00614407]
[1745815475653,0.02090363,94166.0,94156.0,0.00614407]
[1745815475876,0.01990363,94165.0,94155.0,0.01062078]
[1745815476084,0.01990363,94165.0,94157.0,0.00616482]
[1745815476293,0.01990363,94164.0,94156.0,0.00616562]
[1745815476522,0.01990363,94164.0,94158.0,0.00616402]
[1745815476743,0.01990363,94164.0,94157.0,0.00616482]
[1745815476974,0.10689014,94170.0,94159.0,0.00616322]
[1745815477195,0.001,94167.0,94159.0,0.00616322]
[1745815477411,0.001,94167.0,94153.0,0.00814784]
[1745815477627,0.001,94167.0,94160.0,0.00616243]
[1745815477843,0.01990585,94166.0,94153.0,0.01062101]
[1745815478065,0.01990585,94166.0,94161.0,0.00616163]
[1745815478282,0.02090585,94165.0,94153.0,0.01865714]
[1745815478481,0.01990585,94165.0,94153.0,0.01865714]
[1745815478692,0.02090585,94164.0,94154.0,0.00616721]
[1745815479566,0.01990585,94163.0,94154.0,0.00616721]
[1745815480093,0.01990585,94162.0,94154.0,0.00616721]
[1745815480310,0.01990585,94161.0,94154.0,0.0167881]
[1745815480773,0.10689014,94170.0,94154.0,0.0167881]
[1745815480974,0.10689014,94170.0,94156.0,0.01062067]
[1745815481182,0.001,94166.0,94156.0,0.01062067]
[1745815481352,0.001,94166.0,94157.0,0.00616482]
[1745815481516,0.01990837,94165.0,94156.0,0.01062067]
[1745815481727,0.01990837,94165.0,94157.0,0.00616482]
[1745815482288,0.34,94172.0,94157.0,0.00616482]
[1745815482289,0.01990837,94164.0,94157.0,0.00616482]
[1745815482982,0.01990837,94163.0,94158.0,0.00616402]
[1745815483186,0.01990837,94163.0,94155.0,0.01062078]
[1745815483342,0.01990837,94163.0,94159.0,0.00616322]
[1745815483545,0.01990837,94163.0,94155.0,0.01062078]
[1745815483761,0.01990837,94163.0,94156.0,0.00616562]
[1745815483947,0.01990837,94162.0,94156.0,0.00616562]
[1745815484152,0.01990837,94162.0,94154.0,0.01062089]
[1745815484378,0.34,94172.0,94155.0,0.00616641]
[1745815484610,0.42448,94172.0,94155.0,0.00616641]
[1745815484998,0.01991426,94171.0,94155.0,0.00616641]
[1745815485714,0.01991426,94170.0,94155.0,0.00616641]
[1745815485903,0.01991426,94170.0,94153.0,0.01865714]
[1745815486100,0.01991426,94170.0,94156.0,0.00616562]
[1745815486304,0.01991426,94169.0,94154.0,0.0167881]
[1745815486514,0.01991426,94169.0,94157.0,0.00616482]
[1745815486714,0.01991426,94169.0,94155.0,0.00616641]
[1745815486932,0.01991426,94168.0,94153.0,0.00803613]
[1745815487167,0.01991426,94168.0,94153.0,0.01062101]
[1745815487389,0.01991426,94168.0,94154.0,0.00616721]
[1745815487750,0.01991426,94167.0,94154.0,0.00616721]
[1745815488160,0.01991426,94166.0,94154.0,0.00616721]
[1745815488803,0.01991426,94165.0,94154.0,0.00616721]
[1745815489493,0.01991426,94164.0,94154.0,0.00616721]
[1745815490029,0.01991426,94163.0,94154.0,0.00616721]
[1745815490445,0.01991426,94162.0,94154.0,0.00616721]
[1745815490909,0.01991426,94162.0,94154.0,0.0167881]
[1745815491211,0.01991426,94161.0,94154.0,0.0167881]
[1745815491403,0.01991426,94160.0,94154.0,0.0167881]
[1745815492450,0.01991426,94159.0,94154.0,0.0167881]
[1745815492649,0.34,94172.0,94154.0,0.0167881]
[1745815492650,0.34,94172.0,94155.0,0.01062078]
[1745815492893,0.34,94172.0,94155.0,0.01677372]
[1745815493339,0.01992167,94171.0,94155.0,0.01677372]
[1745815494112,0.01992167,94170.0,94155.0,0.00615294]
[1745815494322,0.01992167,94170.0,94155.0,0.01677372]
[1745815494649,0.01992167,94169.0,94155.0,0.01677372]
[1745815494821,0.01992167,94168.0,94155.0,0.01677372]
[1745815495399,0.01992167,94167.0,94155.0,0.01677372]
[1745815495862,0.01992167,94166.0,94160.0,0.01062022]
[1745815496042,0.01992167,94166.0,94161.0,0.0106201]
[1745815496241,0.01992167,94166.0,94161.0,0.01676826]
[1745815496441,0.001,94168.0,94161.0,0.01676826]
[1745815497346,0.001,94166.0,94161.0,0.00614816]
[1745815497817,0.001,94168.0,94158.0,0.01062044]
[1745815497993,0.002,94168.0,94162.0,0.00610708]
[1745815498191,0.001,94168.0,94160.0,0.01062022]
[1745815498386,0.001,94168.0,94161.0,0.00610788]
[1745815498591,0.001,94167.0,94161.0,0.00610788]
[1745815499408,0.4106,94173.0,94161.0,0.00610788]
[1745815499816,0.01991438,94172.0,94161.0,0.00610788]
[1745815500194,0.001,94167.0,94161.0,0.00610788]
[1745815500594,0.01991438,94171.0,94161.0,0.01672798]
[1745815500907,0.01991438,94170.0,94161.0,0.01672798]
[1745815501108,0.01991438,94170.0,94161.0,0.00610788]
[1745815501379,0.01991438,94169.0,94161.0,0.00610788]
[1745815502077,0.002,94172.0,94161.0,0.00610788]
[1745815502302,0.34,94176.0,94161.0,0.00610788]
[1745815502303,0.001,94170.0,94161.0,0.00610788]
[1745815502574,0.34,94176.0,94161.0,0.00610788]
[1745815502575,0.001,94171.0,94161.0,0.01672798]
[1745815502956,0.34,94176.0,94161.0,0.00610788]
[1745815502957,0.001,94169.0,94161.0,0.00610788]
[1745815503121,0.01991348,94170.0,94161.0,0.00610788]
[1745815503559,0.01991348,94169.0,94161.0,0.00610788]
[1745815504025,0.001,94169.0,94161.0,0.00610788]
[1745815505013,0.002,94169.0,94161.0,0.00610788]
[1745815505426,0.002,94169.0,94162.0,0.01061999]
[1745815505583,0.002,94169.0,94161.0,0.01672798]
[1745815505791,0.002,94169.0,94161.0,0.22913009]
[1745815506027,0.002,94169.0,94162.0,0.01061999]
[1745815506315,0.001,94169.0,94162.0,0.01061999]
[1745815506648,0.001,94169.0,94163.0,0.00610628]
[1745815506850,0.3883,94181.0,94163.0,0.00610628]
[1745815507057,0.49519014,94181.0,94161.0,0.0106201]
[1745815507267,0.001,94169.0,94164.0,0.00610549]
[1745815507445,0.001,94169.0,94162.0,0.0061137]
[1745815507744,0.002,94169.0,94165.0,0.00611131]
[1745815507941,0.002,94169.0,94161.0,0.0106201]
[1745815508173,0.001,94169.0,94166.0,0.00611051]
[1745815508377,0.001,94169.0,94161.0,0.0106201]
[1745815508562,0.001,94169.0,94167.0,0.00610971]
[1745815508861,0.001,94169.0,94168.0,0.00610892]
[1745815509201,0.001,94169.0,94162.0,0.01061999]
[1745815509408,0.49519014,94181.0,94163.0,0.0061129]
[1745815509631,0.5915338,94181.0,94162.0,0.01061999]
[1745815509826,0.001,94169.0,94162.0,0.01061999]
[1745815510324,0.01990888,94180.0,94163.0,0.0061129]
[1745815510496,0.5915338,94181.0,94163.0,0.0061129]
[1745815510657,0.5945338,94181.0,94162.0,0.01061999]
[1745815511265,0.5945338,94181.0,94160.0,0.01062022]
[1745815511266,0.01990861,94180.0,94160.0,0.01062022]
[1745815511502,0.01990861,94180.0,94161.0,0.0106201]
[1745815511665,0.01990861,94179.0,94161.0,0.0106201]
[1745815511876,0.01990861,94179.0,94162.0,0.0061137]
[1745815512075,0.001,94169.0,94162.0,0.0061137]
[1745815512612,0.5915338,94181.0,94162.0,0.0061137]
[1745815512774,0.003,94179.0,94162.0,0.0061137]
[1745815513204,0.01990788,94178.0,94162.0,0.0061137]
[1745815513604,0.001,94169.0,94162.0,0.0061137]
[1745815513806,0.001,94169.0,94158.0,0.01274431]
[1745815514055,0.001,94169.0,94159.0,0.00611609]
[1745815514760,0.5915338,94181.0,94159.0,0.00611609]
[1745815514982,0.34,94179.0,94159.0,0.00611609]
[1745815515192,0.34,94179.0,94157.0,0.00212387]
[1745815515320,0.34,94179.0,94155.0,0.00212387]
[1745815515521,0.02290785,94178.0,94155.0,0.00212387]
[1745815515727,0.02290785,94178.0,94156.0,0.00611848]
[1745815515930,0.01990785,94177.0,94157.0,0.00212387]
[1745815516328,0.01990785,94176.0,94157.0,0.00212387]
[1745815516521,0.01990785,94176.0,94155.0,0.00212387]
[1745815516719,0.01990785,94175.0,94155.0,0.00212387]
[1745815516981,0.01990785,94175.0,94156.0,0.00611848]
[1745815517303,0.01990785,94175.0,94157.0,0.00212387]
[1745815517436,0.01990785,94174.0,94157.0,0.00212387]
[1745815517798,0.01990785,94173.0,94158.0,0.00611689]
[1745815518336,0.01990785,94173.0,94155.0,0.00212387]
[1745815518577,0.01990785,94172.0,94156.0,0.00611848]
[1745815518775,0.01990785,94172.0,94157.0,0.00212387]
[1745815519018,0.01990785,94172.0,94158.0,0.00611689]
[1745815519217,0.01990785,94171.0,94158.0,0.00611689]
[1745815519537,0.01990785,94170.0,94155.0,0.00212387]
[1745815519692,0.01990785,94170.0,94159.0,0.00611609]
[1745815519897,0.01990785,94170.0,94155.0,0.00212387]
[1745815520098,0.01990785,94169.0,94160.0,0.00611529]
[1745815520301,0.01990785,94168.0,94155.0,0.00212387]
[1745815520501,0.01990785,94168.0,94161.0,0.00611449]
[1745815520709,0.01990785,94168.0,94155.0,0.00212387]
[1745815520913,0.01990785,94167.0,94162.0,0.0061137]
[1745815521113,0.01990785,94167.0,94155.0,0.00212387]
[1745815521334,0.01990785,94167.0,94163.0,0.0061129]
[1745815521532,0.01412063,94167.0,94155.0,0.00212387]
[1745815521715,0.34,94180.0,94164.0,0.0061121]
[1745815521923,0.34,94180.0,94155.0,0.00212387]
[1745815522192,0.0457,94179.0,94155.0,0.00212387]
[1745815522379,0.0457,94179.0,94156.0,0.00611848]
[1745815522596,0.04152066,94179.0,94157.0,0.00212387]
[1745815522914,0.02882475,94179.0,94157.0,0.00212387]
[1745815523070,0.02882475,94179.0,94155.0,0.00212387]
[1745815523447,0.02882475,94179.0,94156.0,0.00613786]
[1745815523651,0.02882475,94179.0,94157.0,0.00212387]
[1745815524334,0.03182475,94179.0,94154.0,0.00212387]
[1745815524715,0.02882475,94179.0,94155.0,0.00613866]
[1745815524889,0.03082475,94179.0,94156.0,0.00212387]
[1745815525086,0.02232668,94179.0,94156.0,0.00212387]
[1745815525293,0.02232668,94179.0,94157.0,0.00613706]
[1745815525489,0.02232668,94179.0,94158.0,0.00212387]
[1745815525490,0.02132668,94179.0,94158.0,0.00212387]
[1745815525673,0.01932668,94179.0,94158.0,0.00212387]
[1745815525875,0.02432668,94179.0,94154.0,0.00212387]
[1745815526313,0.02432668,94179.0,94155.0,0.00613866]
[1745815526653,0.02432668,94179.0,94156.0,0.00212387]
[1745815526813,0.0481,94178.0,94156.0,0.00826173]
[1745815527161,0.34,94176.0,94156.0,0.00613786]
[1745815527312,0.34,94174.0,94156.0,0.00613786]
[1745815527514,0.34,94174.0,94153.0,0.00792962]
[1745815527515,0.12325116,94170.0,94153.0,0.00792962]
[1745815527722,0.10689014,94173.0,94148.0,0.00212405]
[1745815528114,0.0496,94172.0,94149.0,0.00614344]
[1745815528326,0.0496,94172.0,94150.0,0.00212405]
[1745815528756,0.001,94170.0,94151.0,0.00614185]
[1745815529071,0.0496,94172.0,94151.0,0.01392481]
[1745815529300,0.0516,94172.0,94151.0,0.01392481]
[1745815529430,0.10689014,94171.0,94151.0,0.01392481]
[1745815529633,0.10689014,94171.0,94151.0,0.00778296]
[1745815529876,0.10689014,94171.0,94147.0,0.0919241]
[1745815530062,0.001,94170.0,94147.0,0.0919241]
[1745815530265,0.10789014,94170.0,94148.0,0.00614424]
[1745815530659,0.10789014,94170.0,94147.0,0.0919241]
[1745815531142,0.10789014,94170.0,94148.0,0.00614424]
[1745815531669,0.10689014,94170.0,94148.0,0.00614424]
[1745815531892,0.10889014,94170.0,94148.0,0.00614424]
[1745815532424,0.10989014,94170.0,94148.0,0.00614424]
[1745815532620,0.11189014,94170.0,94148.0,0.00614424]
[1745815533170,0.11189014,94170.0,94148.0,0.01418985]
[1745815533659,0.01990942,94169.0,94148.0,0.01418985]
[1745815534289,0.095,94168.0,94148.0,0.10398985]
[1745815534460,0.1821052,94168.0,94148.0,0.10398985]
[1745815534662,0.1821052,94168.0,94148.0,0.01418985]
[1745815534818,0.01990942,94167.0,94148.0,0.00804561]
[1745815535019,0.01990942,94167.0,94149.0,0.00614602]
[1745815535258,0.01990942,94166.0,94149.0,0.00614602]
[1745815535605,0.01990942,94165.0,94149.0,0.00614602]
[1745815536008,0.01990942,94164.0,94149.0,0.00614602]
[1745815536593,0.01990942,94163.0,94149.0,0.00614602]
[1745815537124,0.01990942,94162.0,94149.0,0.00614602]
[1745815537466,0.01990942,94161.0,94149.0,0.00614602]
[1745815537676,0.01990942,94160.0,94149.0,0.00614602]
[1745815538221,0.01990942,94159.0,94149.0,0.00614602]
[1745815538667,0.001,94162.0,94149.0,0.00614602]
[1745815538872,0.095,94168.0,94149.0,0.00614602]
[1745815539378,0.01990687,94167.0,94149.0,0.00614602]
[1745815539847,0.01990687,94166.0,94149.0,0.00614602]
[1745815540545,0.01990687,94165.0,94149.0,0.00614602]
[1745815541132,0.01990687,94164.0,94149.0,0.00614602]
[1745815541346,0.01990687,94163.0,94149.0,0.00614602]
[1745815542166,0.01990687,94162.0,94149.0,0.00614602]
[1745815542700,0.01990687,94161.0,94149.0,0.00614602]
[1745815543284,0.01990687,94160.0,94149.0,0.00614602]
[1745815543431,0.01990687,94159.0,94149.0,0.00614602]
[1745815544666,0.095,94168.0,94149.0,0.00614602]
[1745815545070,0.01991064,94167.0,94149.0,0.00614602]
[1745815545620,0.01991064,94166.0,94149.0,0.00614602]
[1745815546263,0.01991064,94165.0,94149.0,0.00614602]
[1745815546919,0.01991064,94164.0,94149.0,0.00614602]
[1745815547381,0.01991064,94163.0,94149.0,0.00614602]
[1745815547947,0.01991064,94162.0,94149.0,0.00614602]
[1745815548600,0.01991064,94161.0,94149.0,0.00614602]
[1745815549406,0.01991064,94160.0,94149.0,0.00614602]
[1745815549917,0.01991064,94159.0,94149.0,0.00614602]
[1745815550420,0.01991064,94158.0,94149.0,0.00614602]
[1745815550809,0.095,94168.0,94149.0,0.00614602]
[1745815551010,0.001,94161.0,94149.0,0.00614602]
[1745815551323,0.0199152,94160.0,94149.0,0.00614602]
[1745815552247,0.0199152,94159.0,94149.0,0.00614602]
[1745815552652,0.0199152,94158.0,94149.0,0.00614602]
[1745815553377,0.0199152,94157.0,94149.0,0.00614602]
[1745815553583,0.095,94168.0,94149.0,0.00614602]
[1745815554191,0.01991867,94167.0,94149.0,0.00614602]
[1745815554516,0.01991867,94166.0,94149.0,0.00614602]
[1745815554962,0.01991867,94165.0,94149.0,0.00614602]
[1745815555970,0.01991867,94164.0,94149.0,0.00614602]
[1745815556485,0.01991867,94163.0,94149.0,0.00614602]
[1745815556682,0.01991867,94163.0,94149.0,0.01676748]
[1745815557381,0.01991867,94162.0,94149.0,0.01676748]
[1745815557916,0.01991867,94161.0,94149.0,0.01676748]
[1745815558664,0.01991867,94160.0,94149.0,0.01676748]
[1745815559158,0.01991867,94159.0,94149.0,0.01676748]
[1745815559793,0.01991867,94158.0,94149.0,0.01676748]
[1745815560384,0.001,94162.0,94149.0,0.01676748]
[1745815560385,0.01991867,94157.0,94149.0,0.01676748]
[1745815561212,0.01991867,94156.0,94149.0,0.01676748]
[1745815561748,0.01991867,94155.0,94149.0,0.01676748]
[1745815561920,0.01991867,94155.0,94149.0,0.00614602]
[1745815562136,0.095,94168.0,94149.0,0.00614602]
[1745815562298,0.095,94168.0,94149.0,0.01676748]
[1745815562745,0.01993047,94167.0,94149.0,0.01676748]
[1745815563152,0.01993047,94166.0,94149.0,0.01676748]
[1745815563619,0.01993047,94165.0,94149.0,0.01776748]
[1745815564247,0.01993047,94165.0,94149.0,0.00614602]
[1745815564596,0.01993047,94164.0,94149.0,0.01676748]
[1745815564991,0.01993047,94163.0,94149.0,0.01676748]
[1745815565285,0.01993047,94163.0,94149.0,0.00614602]
[1745815565496,0.01993047,94162.0,94149.0,0.01676748]
[1745815565862,0.01993047,94161.0,94149.0,0.01676748]
[1745815566294,0.01993047,94160.0,94149.0,0.01676748]
[1745815566794,0.01993047,94159.0,94149.0,0.01676748]
[1745815567147,0.01993047,94159.0,94149.0,0.22919648]